{"text_format":"1","workbook":"xlsx","n_sheets":1,"sheets":["日別生産計画"],"not_rendered":{"charts":0,"images":0,"macros":1,"external_links":0,"defined_names":2,"comments":0,"pivot_tables":0},"unopened":[],"bounds":{"document_bytes":16777216,"sheet_cells":100000,"rows_first":2000,"rows_last":500,"rows_between":2000,"halvings":0,"cell_chars":16384,"cell_head_chars":4096},"cells_cut":0,"cells_raw":0,"read":"whole","date_system":"1900"}

{"sheet":"日別生産計画","index":0,"n_rows":10,"n_cols":45,"rows_kept":10,"cut":false,"hidden":false,"merged":[[2,0,2,2],[3,0,3,2]]}
[null,"年度",null,"生産計画／在庫管理表"]
[null,null,null,"月度","単位","Ｃ/Ｓ"]
["品名",null,null,"前月在庫","機械／出荷先","日付","2019-02-01",{"$f":"IF(MONTH($G$3)=MONTH(G3+1),G3+1,0)","v":"2019-02-02"},{"$f":"IF(MONTH($G$3)=MONTH(H3+1),H3+1,0)","v":"2019-02-03"},"2019-02-04","2019-02-05","2019-02-06","2019-02-07","2019-02-08","2019-02-09","2019-02-10","2019-02-11","2019-02-12","2019-02-13","2019-02-14","2019-02-15","2019-02-16","2019-02-17","2019-02-18","2019-02-19","2019-02-20","2019-02-21","2019-02-22","2019-02-23","2019-02-24","2019-02-25","2019-02-26","2019-02-27","2019-02-28","00:00:00","00:00:00","00:00:00","在庫","入数","数量","生産","数量","機械／出荷先","注文","数量"]
[null,null,null,null,null,"生産",null,null,null,null,null,null,null,null,null,null,null,null,null,null,null,null,null,null,null,null,null,null,null,null,null,null,null,null,null,null,null,null,null,null,{"$f":"SUM(G4:AK4)","v":0},{"$f":"AO4*AM10","v":0},{"$f":"E4","v":0}]
[null,null,null,null,null,"生産",null,null,null,null,null,null,null,null,null,null,null,null,null,null,null,null,null,null,null,null,null,null,null,null,null,null,null,null,null,null,null,null,null,null,{"$f":"SUM(G5:AK5)","v":0},{"$f":"AO5*AM10","v":0},0]
[null,null,null,null,null,"生産",null,null,null,null,null,null,null,null,null,null,null,null,null,null,null,null,null,null,null,null,null,null,null,null,null,null,null,null,null,null,null,null,null,null,{"$f":"SUM(G6:AK6)","v":0},{"$f":"AO6*AM10","v":0},0]
[null,null,null,null,null,"出荷",null,null,null,null,null,null,null,null,null,null,null,null,null,null,null,null,null,null,null,null,null,null,null,null,null,null,null,null,null,null,null,null,null,null,null,null,0,{"$f":"SUM(G7:AK7)","v":0},{"$f":"AR7*AM10","v":0}]
[null,null,null,null,null,"出荷",null,null,null,null,null,null,null,null,null,null,null,null,null,null,null,null,null,null,null,null,null,null,null,null,null,null,null,null,null,null,null,null,null,null,null,null,0,{"$f":"SUM(G8:AK8)","v":0},{"$f":"AR8*AM10","v":0}]
[null,null,null,null,null,"出荷",null,null,null,null,null,null,null,null,null,null,null,null,null,null,null,null,null,null,null,null,null,null,null,null,null,null,null,null,null,null,null,null,null,null,null,null,0,{"$f":"SUM(G9:AK9)","v":0},{"$f":"AR9*AM10","v":0}]
[null,null,null,"月末在庫",{"$f":"AL10","v":0},"在庫",null,null,null,null,null,null,null,null,null,null,null,null,null,null,null,null,null,null,null,null,null,null,null,null,null,null,null,null,null,null,null,{"$f":"AK10","v":0},null,{"$f":"AL10*AM10","v":0},{"$f":"SUM(AO4:AO9)","v":0},{"$f":"SUM(AP4:AP9)","v":0},null,{"$f":"SUM(AR4:AR9)","v":0},{"$f":"SUM(AS4:AS9)","v":0}]